Cogmind - Beta 12 @@@ ROGUE MODE // 2024.01.23 @ 14:18:01 Player: Dosh Result: Destroyed by C-40 Crusher with Compactor Performance ------------- Evolutions (4) 2000 Regions Visited (11) 2200 Robots Destroyed (156) 780 Value Destroyed (5716) 5716 Prototype IDs (26) 520 Alien Tech Used (0) 0 Bonus (2103) 2103 TOTAL SCORE: 13319 Bonus ------- High Alert Combat Kills 1528 Follower Combat Kills 357 Entered Garrisons 400 Aligned with FarCom 300 Friendly Fire -482 Cogmind --------- Core Integrity 0/850 Matter 285/300 Energy 100/100 System Corruption 0% Temperature Cool (0) Movement Core (50) Location -6/Waste Parts ------- > --- POWER (1) -------- (None) > --- PROPULSION (4) --- (None) > --- UTILITY (8) ------ (None) > --- WEAPON (2) ------- (None) > --- INVENTORY (5) ---- Improved Cooling System Experimental Sensor Array Remote Force Field Peak State ------------ > --- POWER ------------ Improved Deuterium Engine > --- PROPULSION ------- Medium Treads Medium Treads Medium Treads Medium Treads > --- UTILITY ---------- Huge Storage Unit Core Analyzer Improved Light Armor Plating Layered Light Armor Plating Layered Light Armor Plating Force Field Hacking Suite Hacking Suite > --- WEAPON ----------- Advanced Assault Cannon Advanced Assault Cannon > --- INVENTORY -------- Micro Nuclear Core Wheel Improved Cooling System High-capacity Storage Unit Experimental Sensor Array Force Field Remote Force Field Authchip [Propulsion] Authchip [Device] Component Analysis Suite System Restoration Module Improved Trap Extractor Light EM Pulse Cannon Improved EM Pulse Cannon Improved EM Pulse Cannon AWS/Gauss Advanced Assault Cannon Heavy Rocket Launcher Heavy Flail [Rating: 63] Favorites ----------- Power Deuterium Engine Engine Deuterium Engine Power Core Micro Nuclear Core Propulsion Light Treads Treads Light Treads Wheel Wheel Utility High-capacity Storage Unit Device Terrain Scanner Storage High-capacity Storage Unit Processor Armor Integrity Analyzer Hackware Hacking Suite Protection Medium Reactive Plating Weapon Assault Cannon Energy Gun Improved Medium Laser Energy Cannon Light EM Pulse Cannon Ballistic Gun Enhanced Autogun Ballistic Cannon Assault Cannon Launcher Mini Grenade Launcher Impact Weapon Heavy Flail Build | -11 -10 -10 -10 -9 -8 -8 -8 -8 -7 -6 -6 ------- Run | Jun Mat Min Exi Min Mat Gar Mat Gar Fac Fac Was Slots Evolved 8 | . . . . . 4 . . . 2 2 . Power . | . . . . . . . . . . . . Propulsion 2 | . . . . . 2 . . . . . . Utility 6 | . . . . . 2 . . . 2 2 . Weapon . | . . . . . . . . . . . . Parts Attached 123 | 6 6 6 1 7 17 18 12 18 22 6 4 Power 14 | 1 . 2 . . 1 3 2 2 . 2 1 Engine 6 | 1 . 2 . . 1 . . 1 . 1 . Core 7 | . . . . . . 3 2 1 . 1 . Reactor 1 | . . . . . . . . . . . 1 Propulsion 31 | 2 2 3 . 4 5 3 3 3 3 1 2 Treads 29 | 2 2 1 . 4 5 3 3 3 3 1 2 Leg . | . . . . . . . . . . . . Wheel 2 | . . 2 . . . . . . . . . Hover . | . . . . . . . . . . . . Flight . | . . . . . . . . . . . . Utility 31 | 1 2 . 1 1 5 4 5 3 6 3 . Device 11 | . 1 . . 1 2 1 3 2 1 . . Storage 4 | 1 1 . 1 . . . . . . 1 . Processor 2 | . . . . . . . . 1 . 1 . Hackware 4 | . . . . . 1 . . . 3 . . Protection 10 | . . . . . 2 3 2 . 2 1 . Artifact . | . . . . . . . . . . . . Weapon 47 | 2 2 1 . 2 6 8 2 10 13 . 1 Energy Gun 2 | . . . . . 2 . . . . . . Energy Cannon 6 | . . . . . . . . 2 4 . . Ballistic Gun 14 | 2 2 . . . 1 2 2 2 2 . 1 Ballistic Cannon 13 | . . . . 1 2 2 . 2 6 . . Launcher 11 | . . 1 . 1 1 4 . 3 1 . . Special Weapon . | . . . . . . . . . . . . Impact Weapon 1 | . . . . . . . . 1 . . . Slashing Weapon . | . . . . . . . . . . . . Piercing Weapon . | . . . . . . . . . . . . Special Melee Weapon . | . . . . . . . . . . . . Unidentified Prototypes 2 | . . . . . 2 . . . . . . Corrupted Parts 1 | . . . . 1 . . . . . . . System Corruption 5 | . . . . 5 . . . . . . . Parts Lost 38 | . 1 2 . . 5 8 2 7 2 1 10 Power 5 | . . . . . 1 3 . . 1 . . Propulsion 14 | . . 1 . . 3 2 . 2 . 1 5 Utility 13 | . . . . . 1 3 2 3 1 . 3 Weapon 6 | . 1 1 . . . . . 2 . . 2 Highest Loss Streak 7 | . 1 1 . . 4 2 2 4 1 1 7 To Critical Strikes 4 | . . . . . . . . . . . 4 Average Slot Usage (%) 93 | . 98 99 74 94 98 94 99 94 98 92 22 Engine 7 | . 14 14 14 14 8 . . . 6 5 . Core 2 | . . . . . . 5 9 8 . . . Treads 29 | . 28 23 14 26 34 35 36 35 30 21 8 Device 10 | . 12 14 14 14 9 4 8 15 11 6 . Storage 9 | . 14 14 14 14 9 9 9 9 7 6 . Processor 1 | . . . . . . . . 3 4 5 . Hackware 5 | . . . . . 9 9 2 . 14 13 1 Protection 6 | . . . . . 8 12 15 3 4 18 2 Ballistic Gun 8 | . 27 14 1 . . 7 17 4 1 . 4 Ballistic Cannon 6 | . . . . 11 14 7 . 5 7 13 1 Launcher 3 | . . 14 1 11 1 2 . 5 . . . Naked Turns 29 | . . . . . . . . . . . 29 Heaviest Build 120 | 14 30 32 50 58 70 78 96 99 78 120 120 Greatest Support 140 | 40 40 40 10 43 80 80 80 80 104 104 140 Greatest Overweight (x) 10 | . 1 10 4 4 1 1 1 1 . 2 3 Average Overweight (x) . | . . . 2 1 . . . . . . 1 Largest Inventory Capacity 25 | 8 15 15 20 20 20 20 20 20 20 25 25 Average Capacity 18 | 6 14 15 17 20 20 20 20 20 20 23 7 Most Carried 20 | 3 12 15 15 20 20 20 20 20 20 20 20 Average Carried 16 | 1 8 13 14 16 18 19 19 18 19 19 4 Final Capacity 25 | 8 15 15 20 20 20 20 20 20 20 25 5 Final Carried 20 | 3 12 15 15 19 20 20 20 20 20 20 3 Class Distribution -------------------- 52% | Scavenger-Mutant 33% | Mutant 12% | Hacker-Mutant Dominant Class ---------------- Mutant | -10/Materials Mutant | -10/Mines Mutant | -10/Exiles Mutant | -9/Mines Scavenger-Mutant | -8/Materials Scavenger-Mutant | -8/Garrison Scavenger-Mutant | -8/Materials Scavenger-Mutant | -8/Garrison Hacker-Mutant | -7/Factory Hacker-Mutant | -6/Factory Mutant | -6/Waste Resources | -11 -10 -10 -10 -9 -8 -8 -8 -8 -7 -6 -6 ----------- Run | Jun Mat Min Exi Min Mat Gar Mat Gar Fac Fac Was Matter Collected 4656 | 188 522 165 . 239 776 921 457 495 719 113 61 Remotely . | . . . . . . . . . . . . Salvage Created 5951 | . 550 196 . 186 960 871 462 601 660 139 1326 Parts 288 | . 36 16 . 10 55 52 23 30 33 7 26 Haulers Intercepted 5 | . 1 . . . 3 . . . . 1 . Recyclers Shooed 3 | . . . . . 1 . . . 2 . . Parts Field Recycled . | . . . . . . . . . . . . Retrieved Matter . | . . . . . . . . . . . . Parts Self-Destructed . | . . . . . . . . . . . . Prevented . | . . . . . . . . . . . . Kills | -11 -10 -10 -10 -9 -8 -8 -8 -8 -7 -6 -6 ------- Run | Jun Mat Min Exi Min Mat Gar Mat Gar Fac Fac Was Combat Hostiles Destroyed 124 | . 15 8 . 4 21 30 7 18 15 1 5 Melee 1 | . . . . . 1 . . . . . . Guns 37 | . 15 2 . . . 4 7 3 1 . 5 Cannons 44 | . . . . 3 18 10 . 1 11 1 . AOE 39 | . . 6 . 1 2 16 . 11 3 . . Classes Destroyed 17 | . 5 3 . 2 2 1 . 2 1 . 1 Worker 8 | . . 1 . . 6 . . . 1 . . Builder 1 | . . 1 . . . . . . . . . Hauler 5 | . 1 . . . 3 . . . . 1 . Recycler 5 | . . 1 . 1 . . . . 3 . . Operator 4 | . 2 . . . . . 1 . 1 . . Watcher 6 | . 1 . . . 4 . 1 . . . . Swarmer 19 | . 6 6 . . . 4 . 3 . . . Grunt 54 | . 9 2 . 2 14 10 4 8 5 . . Brawler 6 | . . . . 1 1 2 1 1 . . . Duelist 6 | . . . . 1 . 2 2 . 1 . . Protector 1 | . . . . . . . . . 1 . . Sentry 16 | . . . . . 4 5 1 4 1 1 . Specialist 2 | . . . . . . . . 2 . . . Hunter 6 | . . . . . 2 1 . . 3 . . Programmer 11 | . . . . . . 6 . 1 4 . . Behemoth 1 | . . . . . . . . 1 . . . Compactor 5 | . . . . . . . . . . . 5 Best Kill Streak 9 | . 4 2 . 2 8 4 4 6 9 1 1 Combat Bots Only 6 | . 4 2 . 2 5 4 4 6 5 1 1 Max Kills in Single Turn 3 | . 1 2 . 1 3 2 1 3 2 1 1 Gunslinging . | . . . . . . . . . . . . Exploded 3 | . . 2 . 1 1 2 . 3 1 . . Melee 1 | . . . . . 1 . . . . . . Uniques/NPCs Destroyed . | . . . . . . . . . . . . Combat | -11 -10 -10 -10 -9 -8 -8 -8 -8 -7 -6 -6 -------- Run | Jun Mat Min Exi Min Mat Gar Mat Gar Fac Fac Was Damage Taken 8251 | . 501 208 . 115 1164 1308 363 1287 1022 92 2191 Core 1629 | . 77 55 . 39 107 138 11 192 136 16 858 Absorbed by Shields 1106 | . . . . . 56 164 44 269 518 27 28 Redirected to Shielding 102 | . . . . . . 102 . . . . . Regen/Repaired (Parts) 11 | . . . . . 11 . . . . . . Core Remaining (%) 57 | 100 . . . 31 . . . 18 80 . . Volleys Fired 424 | . 74 26 . 16 79 75 41 38 65 5 5 Largest 2 | . 2 2 . 2 2 2 2 2 2 2 2 Hottest 112 | . 40 50 . 74 100 74 50 112 112 96 96 Shots Fired 849 | . 144 35 . 21 147 136 82 61 111 10 102 Gun 476 | . 144 27 . . 29 52 82 32 17 . 93 Cannon 318 | . . . . 16 114 63 . 15 91 10 9 Launcher 55 | . . 8 . 5 4 21 . 14 3 . . Special . | . . . . . . . . . . . . Kinetic 732 | . 144 27 . 16 114 115 82 37 85 10 102 Thermal 29 | . . . . . 29 . . . . . . Explosive 55 | . . 8 . 5 4 21 . 14 3 . . Electromagnetic 33 | . . . . . . . . 10 23 . . Robot Hit Streak 37 | . 11 4 . 5 8 9 6 12 6 6 37 Robot Miss Streak 10 | . 4 4 . 3 10 3 6 3 7 1 2 Penetration Max . | . . . . . . . . . . . . Secondary Targets 3 | . 2 . . . . . 1 . . . . Max Gunslinging Chain 1 | . 1 . . . . . 1 . . . . Autonomous 94 | . . . . . . . . . . . 94 Shots Hit Robots 559 | . 92 18 . 13 108 82 42 39 67 7 91 Core Hits 296 | . 31 16 . 7 69 58 18 38 40 4 15 Critical Kills 2 | . . . . . . . . . . . 2 Critical Parts Destroyed 1 | . . . . . . . . 1 . . . Critical Strikes 14 | . . . . 1 4 . . 1 5 . 3 Burn 3 | . . . . . 3 . . . . . . Destroy 3 | . . . . . . . . . . . 3 Blast 6 | . . . . 1 1 . . . 4 . . Corrupt 1 | . . . . . . . . . 1 . . Smash 1 | . . . . . . . . 1 . . . Melee Attacks 9 | . . . . . . . . 9 . . . Impact 9 | . . . . . . . . 9 . . . Slashing . | . . . . . . . . . . . . Piercing . | . . . . . . . . . . . . Sneak Attacks . | . . . . . . . . . . . . Combat Hostiles . | . . . . . . . . . . . . Follow-up Attacks . | . . . . . . . . . . . . Damage Inflicted 16112 | . 1134 560 . 485 2880 3021 737 2192 2178 194 2731 Guns 6082 | . 1109 106 . . 375 622 737 393 193 . 2547 Cannons 4566 | . . . . 234 1592 894 . 192 1276 194 184 Explosions 5056 | . . 449 . 251 779 1454 . 1469 654 . . Melee 138 | . . . . . . . . 138 . . . Ramming 270 | . 25 5 . . 134 51 . . 55 . . Kinetic 9791 | . 1109 106 . 234 1592 1516 737 407 1165 194 2731 Thermal 726 | . . 53 . . 551 . . 56 66 . . Explosive 4705 | . . 396 . 251 603 1454 . 1413 588 . . Electromagnetic 482 | . . . . . . . . 178 304 . . Impact 138 | . . . . . . . . 138 . . . Slashing . | . . . . . . . . . . . . Piercing . | . . . . . . . . . . . . Highest Corruption 8 | . 2 3 3 8 . 7 7 . 4 . . Average Corruption 3 | . 2 2 3 3 . 6 4 . 1 . . Corruption Purged 12 | . . . . . . . 7 . 5 . . Corruption Blocked . | . . . . . . . . . . . . Effects 89 | . 8 13 5 18 . 39 4 . 2 . . Message Errors 18 | . 1 3 2 7 . 3 . . 2 . . Matter Fused 21 | . 2 1 . 5 . 13 . . . . . Heat Flow Errors 9 | . . 2 . 1 . 6 . . . . . Energy Discharges 12 | . 2 1 2 3 . 3 1 . . . . Parts Fused 1 | . . . . 1 . . . . . . . Data Loss (minor) 18 | . 2 3 1 1 . 8 3 . . . . Data Loss (major) 3 | . . 1 . . . 2 . . . . . Misfires 1 | . . 1 . . . . . . . . . Alerts 5 | . 1 1 . . . 3 . . . . . Weapon Failures 1 | . . . . . . 1 . . . . . Overload Shots . | . . . . . . . . . . . . Overflow Damage 362 | . . 45 . 72 100 22 . 89 34 . . Projectiles 61 | . . . . 19 5 18 . . 19 . . Explosions 232 | . . 45 . 53 95 4 . 20 15 . . Melee 69 | . . . . . . . . 69 . . . Knockbacks 63 | . . . . 1 38 9 . . 15 . . Impact 3 | . . . . . 1 2 . . . . . Kinetic 56 | . . . . 1 34 6 . . 15 . . Secondary 4 | . . . . . 3 1 . . . . . Self-Inflicted Damage 550 | . . 100 . 23 95 174 . 63 95 . . Shots 23 | . . 7 . 1 2 9 . 2 2 . . Rammed 43 | . 6 3 . . 12 12 . . 10 . . Targets Rammed 47 | . 6 3 . . 16 12 . . 10 . . Kicked . | . . . . . . . . . . . . Crushed 4 | . . . . . 4 . . . . . . Highest Temperature 351 | . 12 197 . 215 351 211 240 120 263 86 95 Average Temperature 67 | . 6 42 . 46 103 51 99 42 71 42 65 Received Heat Transfer 1605 | . 168 21 . 45 447 183 123 402 193 23 . Effects 6 | . . . . . 3 . 3 . . . . Interference 6 | . . . . . 3 . 3 . . . . Siege Activations . | . . . . . . . . . . . . Robots Corrupted 2 | . . . . . . . . 2 . . . Combat Hostiles 2 | . . . . . . . . 2 . . . Parts Fried 3 | . . . . . . . . 2 1 . . Impact Corruptions 2 | . . . . . . . . 2 . . . Robots Melted . | . . . . . . . . . . . . Combat Hostiles . | . . . . . . . . . . . . Parts Melted 2 | . . . . . 1 . . 1 . . . Heat Transferred 1386 | . . 50 . . 1186 . . 50 100 . . Parts Sabotaged . | . . . . . . . . . . . . Parts Stolen . | . . . . . . . . . . . . Parts Stripped . | . . . . . . . . . . . . Power Chain Reactions 3 | . . . . . . . . 1 2 . . Missiles Intercepted . | . . . . . . . . . . . . Alert | -11 -10 -10 -10 -9 -8 -8 -8 -8 -7 -6 -6 ------- Run | Jun Mat Min Exi Min Mat Gar Mat Gar Fac Fac Was Peak Influence 1823 | . 217 212 . 104 722 1823 1082 1079 935 489 103 Initial 888 | . . 59 . . . 445 888 363 566 452 103 Average 464 | . 95 78 . 50 207 1128 800 680 711 392 25 Maximum Alert Level 5 | . 1 1 . . 3 5 3 3 3 2 . Low Security (%) 44 | 100 92 99 . 100 67 . . . . . 100 Level 1 5 | . 7 . . . 10 . . 4 . 46 . Level 2 23 | . . . . . 21 23 34 59 46 53 . Level 3 18 | . . . . . . 23 65 36 53 . . Level 4 5 | . . . . . . 34 . . . . . Level 5 2 | . . . . . . 17 . . . . . High Security . | . . . . . . . . . . . . Max Security . | . . . . . . . . . . . . Squads Dispatched 30 | . 4 . . . 11 . 4 . 11 . . Investigation 7 | . 2 . . . 1 . 1 . 3 . . Extermination 3 | . . . . . . . . . 3 . . Reinforcement 8 | . 2 . . . 3 . . . 3 . . Assault 2 | . . . . . . . . . 2 . . Garrison 10 | . . . . . 7 . 3 . . . . Intercept . | . . . . . . . . . . . . Searches Triggered . | . . . . . . . . . . . . Construction Impeded 2 | . . . . . 1 . . . 1 . . Haulers Reinforced . | . . . . . . . . . . . . Active Scanning Responses . | . . . . . . . . . . . . Cargo Convoy Interrupts . | . . . . . . . . . . . . Stealth | -11 -10 -10 -10 -9 -8 -8 -8 -8 -7 -6 -6 --------- Run | Jun Mat Min Exi Min Mat Gar Mat Gar Fac Fac Was Distress Signals 10 | . 1 . . . 6 1 1 . 1 . . Communications Jammed . | . . . . . . . . . . . . Distress Signals . | . . . . . . . . . . . . Times Spotted 203 | . 30 9 . 5 47 37 15 19 35 1 5 Peak Tracking Total 7 | . 7 3 . 2 5 4 3 6 6 1 2 Tactical Retreats 16 | . 2 2 . . 6 4 . 1 1 . . Traps | -11 -10 -10 -10 -9 -8 -8 -8 -8 -7 -6 -6 ------- Run | Jun Mat Min Exi Min Mat Gar Mat Gar Fac Fac Was Traps Triggered 13 | . 3 1 . . . 2 1 2 3 1 . Indirectly . | . . . . . . . . . . . . Trap Hack Attempts . | . . . . . . . . . . . . Triggered . | . . . . . . . . . . . . Disarmed . | . . . . . . . . . . . . Reprogrammed . | . . . . . . . . . . . . Reused . | . . . . . . . . . . . . Traps Extracted . | . . . . . . . . . . . . Installed . | . . . . . . . . . . . . Triggered 1 | . . . . . . . . . 1 . . Machines | -11 -10 -10 -10 -9 -8 -8 -8 -8 -7 -6 -6 ---------- Run | Jun Mat Min Exi Min Mat Gar Mat Gar Fac Fac Was Machines Disabled 17 | . . 2 . 1 3 4 1 1 5 . . Max in Single Turn 1 | . . 1 . 1 1 1 1 1 1 . . Garrison Access 1 | . . . . . . . . . 1 . . Garrison Relay 1 | . . . . . . 1 . . . . . Machines Repaired . | . . . . . . . . . . . . Machines Sabotaged . | . . . . . . . . . . . . Overloaded Fab Kills . | . . . . . . . . . . . . Hacking | -11 -10 -10 -10 -9 -8 -8 -8 -8 -7 -6 -6 --------- Run | Jun Mat Min Exi Min Mat Gar Mat Gar Fac Fac Was Machines Accessed 33 | . 7 1 1 . 7 3 4 2 7 1 . Terminals 20 | . 5 . . . 4 3 3 2 3 . . Fabricators 1 | . . . . . . . . . 1 . . Repair Stations 2 | . . . . . 1 . . . . 1 . Recycling Units 3 | . 2 . . . . . . . 1 . . Scanalyzers 2 | . . . . . 1 . . . 1 . . Garrison Access 3 | . . . . . 1 . 1 . 1 . . Total Hacks 70 | . 12 1 1 . 14 7 11 3 19 2 . Successful 40 | . 5 1 1 . 10 2 6 1 13 1 . Failed 30 | . 7 . . . 4 5 5 2 6 1 . Catastrophic 5 | . 1 . . . . 2 . 1 1 . . Database Lockouts . | . . . . . . . . . . . . Manual 36 | . 11 . 1 . 6 . 10 . 8 . . Terminals 46 | . 9 . . . 8 7 9 3 10 . . Fabricators 2 | . . . . . . . . . 2 . . Repair Stations 5 | . . . . . 3 . . . . 2 . Recycling Units 6 | . 3 . . . . . . . 3 . . Scanalyzers 4 | . . . . . 2 . . . 2 . . Garrison Access 5 | . . . . . 1 . 2 . 2 . . Terminal Hacks 17 | . 2 1 1 . 3 2 3 1 4 . . Robot Analysis 2 | . 1 . . . 1 . . . . . . Open Door 2 | . . 1 . . . 1 . . . . . Emergency Access Points 2 | . . . . . . . . 1 1 . . Terminal Index 1 | . . . . . 1 . . . . . . Recycling Unit Index 1 | . . . . . . . . . 1 . . Alert Level 2 | . . . . . . . 1 . 1 . . Unreport Threat 3 | . . . . . 1 . 2 . . . . Hauler Manifests 2 | . 1 . . . . . . . 1 . . Patrol Navigation 1 | . . . . . . 1 . . . . . EX-Prototype ID Bank 1 | . . . 1 . . . . . . . . Fabricator Hacks 1 | . . . . . . . . . 1 . . Network Status 1 | . . . . . . . . . 1 . . Repair Station Hacks 3 | . . . . . 2 . . . . 1 . Scan Component 2 | . . . . . 1 . . . . 1 . Repair 1 | . . . . . 1 . . . . . . Recycling Unit Hacks 1 | . . . . . . . . . 1 . . Report Inventory 1 | . . . . . . . . . 1 . . Scanalyzer 4 | . . . . . 2 . . . 2 . . Insert Component 2 | . . . . . 1 . . . 1 . . Analyze 2 | . . . . . 1 . . . 1 . . Garrison Access Hacks 3 | . . . . . 1 . 1 . 1 . . Unlock Access 2 | . . . . . 1 . 1 . . . . Seal Access 1 | . . . . . . . . . 1 . . Unauthorized Hacks 11 | . 3 . . . 2 . 2 . 4 . . Terminals 5 | . 1 . . . 2 . 1 . 1 . . Botnet 4 | . . . . . 2 . 1 . 1 . . Operators 1 | . 1 . . . . . . . . . . Fabricators 1 | . . . . . . . . . 1 . . Recompile 1 | . . . . . . . . . 1 . . Repair Stations . | . . . . . . . . . . . . Recycling Units 4 | . 2 . . . . . . . 2 . . Monitor 1 | . . . . . . . . . 1 . . Reject 1 | . . . . . . . . . 1 . . Tunnel 2 | . 2 . . . . . . . . . . Scanalyzers . | . . . . . . . . . . . . Garrison Access 1 | . . . . . . . 1 . . . . Watchers 1 | . . . . . . . 1 . . . . Data Cores Recovered . | . . . . . . . . . . . . Used . | . . . . . . . . . . . . Hacking Detections 24 | . 5 . . . 4 3 4 2 5 1 . Full Trace Events 6 | . . . . . 1 2 1 1 1 . . Feedback Events 2 | . . . . . . . . . 2 . . Corruption 1 | . . . . . . . . . 1 . . Hackware Fried 1 | . . . . . . . . . 1 . . Feedback Blocked . | . . . . . . . . . . . . Robot Schematics Acquired . | . . . . . . . . . . . . Robots Built . | . . . . . . . . . . . . Authchips . | . . . . . . . . . . . . Time . | . . . . . . . . . . . . Total Robot Build Rating . | . . . . . . . . . . . . Part Schematics Acquired 2 | . . . . . 1 . . . 1 . . Parts Built . | . . . . . . . . . . . . Authchips . | . . . . . . . . . . . . Time . | . . . . . . . . . . . . Total Part Build Rating . | . . . . . . . . . . . . Parts Repaired 1 | . . . . . 1 . . . . . . Time 68 | . . . . . 68 . . . . . . Parts Recycled . | . . . . . . . . . . . . Recycled Matter . | . . . . . . . . . . . . Retrieved Matter . | . . . . . . . . . . . . Retrieved Components . | . . . . . . . . . . . . Parts Scanalyzed 2 | . . . . . 1 . . . 1 . . Part Schematics Acquired 2 | . . . . . 1 . . . 1 . . Parts Damaged 1 | . . . . . 1 . . . . . . Bothacking | -11 -10 -10 -10 -9 -8 -8 -8 -8 -7 -6 -6 ------------ Run | Jun Mat Min Exi Min Mat Gar Mat Gar Fac Fac Was Used RIF Installer . | . . . . . . . . . . . . Robots Hacked . | . . . . . . . . . . . . Non-combat . | . . . . . . . . . . . . Combat . | . . . . . . . . . . . . Robot Hacks Applied . | . . . . . . . . . . . . Relay Couplers Released 12 | . . . . . . 8 . 4 . . . Machine Destruction 4 | . . . . . . 4 . . . . . Programmers 8 | . . . . . . 4 . 4 . . . Fabnet Peak Effective % . | . . . . . . . . . . . . Robots Rewired 10 | . . . . . . 7 . 3 . . . Allies Hacked . | . . . . . . . . . . . . Hacks Repelled . | . . . . . . . . . . . . Allies | -11 -10 -10 -10 -9 -8 -8 -8 -8 -7 -6 -6 -------- Run | Jun Mat Min Exi Min Mat Gar Mat Gar Fac Fac Was Total Allies 12 | . . . . . . 8 . 3 . . 1 Largest Group 5 | . . . . . . 5 4 3 . . 1 Highest-Rated Group 120 | . . . . . . 105 87 120 . . 31 Highest-Rated Ally 40 | . . . . . . 39 39 40 . . 31 Total Orders . | . . . . . . . . . . . . Ally Attacks 83 | . . . . . . 30 30 9 . . 14 Total Damage 1475 | . . . . . . 503 486 229 . . 257 Kills 15 | . . . . . . 7 4 4 . . . Allies Corrupted . | . . . . . . . . . . . . Allies Melted . | . . . . . . . . . . . . Intel | -11 -10 -10 -10 -9 -8 -8 -8 -8 -7 -6 -6 ------- Run | Jun Mat Min Exi Min Mat Gar Mat Gar Fac Fac Was Robot Analysis Total 2 | . 1 . . . 1 . . . . . . Derelict Logs Recovered 3 | . . 1 . 2 . . . . . . . Drone Launches . | . . . . . . . . . . . . Drone Recoveries . | . . . . . . . . . . . . Exploration | -11 -10 -10 -10 -9 -8 -8 -8 -8 -7 -6 -6 ------------- Run | Jun Mat Min Exi Min Mat Gar Mat Gar Fac Fac Was Turns Passed 13744 | 81 1772 1257 383 959 2204 2123 1082 1238 1431 753 461 Spaces Moved 6417 | 50 798 692 309 407 879 1051 460 608 670 330 163 Core 104 | 9 . 2 . . . . . . . . 93 Treads 5732 | 41 798 493 . 332 879 1051 460 608 670 330 70 Legs . | . . . . . . . . . . . . Wheels 581 | . . 197 309 75 . . . . . . . Hover . | . . . . . . . . . . . . Flight . | . . . . . . . . . . . . Fastest Speed 50 | 50 160 125 110 140 160 160 160 160 160 160 50 Average Speed 171 | 140 160 155 122 221 171 162 208 173 160 219 188 Slowest Speed 550 | 160 240 550 140 240 240 240 240 240 160 320 240 Overloaded Moves . | . . . . . . . . . . . . Propulsion Burnouts . | . . . . . . . . . . . . Robots Hopped . | . . . . . . . . . . . . Cave-ins Triggered . | . . . . . . . . . . . . Exploration Rate (%) 55 | 4 94 99 70 95 52 79 27 74 20 8 48 Regions Visited 11 Branch Regions 3 Pre-discovered Areas 2 | . 2 . . . . . . . . . . Known Exits Taken 2 | . . . . . 1 . 1 . . . . Unknown Exits Taken 6 | 1 1 1 1 1 . . . . 1 . . Scrap Searched 5 | . . 1 . 4 . . . . . . . Spaces Dug 1 | . . . . . . . . . 1 . . Terrain Destroyed 417 | . . 102 . 52 40 79 . 90 38 3 13 Melee . | . . . . . . . . . . . . Projectile 30 | . . . . 3 6 . . 1 4 3 13 AOE 387 | . . 102 . 49 34 79 . 89 34 . . Terrain Rammed . | . . . . . . . . . . . . Walls Destroyed . | . . . . . . . . . . . . Machines Disabled . | . . . . . . . . . . . . Actions | -11 -10 -10 -10 -9 -8 -8 -8 -8 -7 -6 -6 --------- Run | Jun Mat Min Exi Min Mat Gar Mat Gar Fac Fac Was Total 8400 | 58 1145 843 315 443 1417 1346 538 722 920 347 306 Wait 1192 | . 254 99 . 7 415 122 9 16 131 5 134 Move 6406 | 49 797 691 308 406 878 1048 459 607 670 330 163 Hop . | . . . . . . . . . . . . Pick Up 58 | 3 8 8 1 4 8 6 7 3 9 1 . Fast Attach 42 | 6 5 3 . 2 4 7 2 4 4 2 3 Attach 27 | . . 2 . 2 8 1 3 5 3 2 1 Detach 9 | . . 3 . 1 3 . . 1 1 . . Swap 54 | . 1 1 1 3 5 10 7 9 15 2 . Drop 44 | . . 7 5 2 1 6 10 . 13 . . Fire 424 | . 74 26 . 16 79 75 41 38 65 5 5 Melee 9 | . . . . . . . . 9 . . . Ram 1 | . . 1 . . . . . . . . . Kick . | . . . . . . . . . . . . Crush 45 | . 6 2 . . 16 12 . . 9 . . Escape Stasis 1 | . . . . . . 1 . . . . . Rewire 88 | . . . . . . 58 . 30 . . . Trap . | . . . . . . . . . . . . Miscellaneous . | . . . . . . . . . . . . Route ------- -11/Junkyard -10/Materials (discovered 5 exits: [*Mat x3] / *Min x2) -10/Mines (discovered 3 exits: [*Mat x2] / *Exi) -10/Exiles (discovered 2 exits: [*Min x2]) -9/Mines (discovered 2 exits: *Mat x2) -8/Materials (discovered 2 exits: *Fac / Gar) -8/Garrison (discovered 3 exits: *Mat x3) -8/Materials -8/Garrison (discovered 3 exits: *Fac x3) -7/Factory (discovered 2 exits: *Fac / Sto) -6/Factory -6/Waste History --------- Turn | Location | Event 15 | -11/Junkyard | Discovered new exit (range 15) 82 | -11/Junkyard | Entered Materials 313 | -10/Materials | Build established: Mutant 402 | -10/Materials | Discovered new exit (range 13) 457 | -10/Materials | Discovered new exit (range 6) 888 | -10/Materials | Discovered new exit (range 10) 1310 | -10/Materials | Discovered new exit (range 4) 1472 | -10/Materials | Discovered new exit (range 7) 1854 | -10/Materials | Entered Mines 2067 | -10/Mines | Learned Materials stockpile data 2075 | -10/Mines | Discovered new exit (range 7) 2293 | -10/Mines | Met a Derelict who couldn't figure out how to use a Trap Extractor 2451 | -10/Mines | Discovered new exit (range 6) 2536 | -10/Mines | Deemed a non-threat by the Exiles lab entrance 2538 | -10/Mines | Discovered new exit (range 5) 2578 | -10/Mines | Received a Rocket Launcher from a helpful Derelict 2717 | -10/Mines | Core integrity fell below 50% 3111 | -10/Mines | Entered Exiles 3128 | -10/Exiles | Discovered new exit (range 15) 3145 | -10/Exiles | Met 8R-AWN 3165 | -10/Exiles | Met EX-HEX 3193 | -10/Exiles | Met EX-BIN 3207 | -10/Exiles | Aligned with FarCom system 3208 | -10/Exiles | Given EX-Vault access code 3233 | -10/Exiles | Opened EX-Vault 3242 | -10/Exiles | Found AWS/Gauss 3266 | -10/Exiles | Warned to stay clear of 0b10 Research branches 3300 | -10/Exiles | Met EX-DEC 3480 | -10/Exiles | Discovered new exit (range 12) 3494 | -10/Exiles | Left Exiles lab with AWS/Gauss 3494 | -10/Exiles | Entered Mines 3652 | -9/Mines | Discovered new exit (range 15) 3866 | -9/Mines | Found a damaged Exp. Sensor Array with a note attached 3871 | -9/Mines | Found Prototype Device 3950 | -9/Mines | Learned Materials emergency access door positions 3974 | -9/Mines | Build established: Skirmisher 4133 | -9/Mines | Joined a pair of Derelicts in attacking an 0b10 outpost 4279 | -9/Mines | Build established: Mutant 4339 | -9/Mines | Discovered new exit (range 12) 4453 | -9/Mines | Entered Materials 4453 | -8/Materials | Evolved 4 slots: Propulsion x2, Utility x2 4747 | -8/Materials | Identified Exp. Sensor Array 4754 | -8/Materials | Build established: Scavenger-Mutant 4848 | -8/Materials | Repaired Broken Exp. Sensor Array? 5209 | -8/Materials | Discovered new exit (range 13) 5281 | -8/Materials | Garrison activated, responded to threat 5410 | -8/Materials | Garrison activated, responded to threat 5931 | -8/Materials | Garrison activated, responded to threat 6097 | -8/Materials | Garrison activated, responded to threat 6314 | -8/Materials | Garrison activated, responded to threat 6462 | -8/Materials | Lost 4 parts (1p2n1u) 6656 | -8/Materials | Identified exit to Garrison 6657 | -8/Materials | Entered Garrison 6804 | -8/Garrison | Spotted B-75 Beast 6806 | -8/Garrison | Spotted B-75 Beast 7021 | -8/Garrison | Triggered checkpoint 7161 | -8/Garrison | Triggered checkpoint 7225 | -8/Garrison | Discovered new exit (range 14) 7330 | -8/Garrison | Triggered checkpoint 7430 | -8/Garrison | Triggered checkpoint 7542 | -8/Garrison | Discovered new exit (range 10) 7592 | -8/Garrison | Triggered checkpoint 7890 | -8/Garrison | Triggered checkpoint 8208 | -8/Garrison | Rescued a captive Derelict 8275 | -8/Garrison | Discovered new exit (range 4) 8348 | -8/Garrison | Triggered checkpoint 8436 | -8/Garrison | Attempted to access garrison exit controls, blocked by remote lockdown 8561 | -8/Garrison | Attempted to access garrison exit controls, blocked by remote lockdown 8780 | -8/Garrison | Entered Materials 8780 | -8/Materials | Accompanied by 4 allies 8959 | -8/Materials | Identified exit to Garrison 9085 | -8/Materials | Garrison activated, responded to threat 9862 | -8/Materials | Entered Garrison 9895 | -8/Garrison | Spotted B-75 Beast 9917 | -8/Garrison | Core integrity fell below 50% 9953 | -8/Garrison | Destroyed B-75 Beast 9979 | -8/Garrison | Lost 4 parts (2n2u) 10056 | -8/Garrison | Triggered checkpoint 10462 | -8/Garrison | Triggered checkpoint 10468 | -8/Garrison | Triggered checkpoint 10545 | -8/Garrison | Discovered new exit (range 8) 10649 | -8/Garrison | Core integrity fell below 20% 10695 | -8/Garrison | Triggered checkpoint 10782 | -8/Garrison | Discovered new exit (range 14) 10818 | -8/Garrison | Triggered checkpoint 11094 | -8/Garrison | Discovered new exit (range 3) 11100 | -8/Garrison | Entered Factory 11100 | -7/Factory | Evolved 2 slots: Utility x2 11101 | -7/Factory | Identified exit to Storage 11819 | -7/Factory | Build established: Hacker-Mutant 12184 | -7/Factory | Hacking Suite fried by hacking feedback 12300 | -7/Factory | First assault squad dispatched 12469 | -7/Factory | Discovered new exit (range 8) 12531 | -7/Factory | Entered another Factory area 12531 | -6/Factory | Evolved 2 slots: Utility x2 13284 | -6/Factory | Sucked down chute 13284 | -6/Factory | Entered Waste 13285 | -6/Waste | Met a frightened Derelict 13323 | -6/Waste | Spotted C-40 Crusher 13335 | -6/Waste | Crushed by Compactor (1 part destroyed, 2 dropped) 13338 | -6/Waste | Crushed by Compactor (1 part destroyed, 1 dropped) 13339 | -6/Waste | Spotted C-40 Crusher 13340 | -6/Waste | Crushed by Compactor (1 part destroyed, 2 dropped) 13341 | -6/Waste | Crushed by Compactor (1 part destroyed, 2 dropped) 13343 | -6/Waste | Crushed by Compactor (1 part destroyed, 1 dropped) 13344 | -6/Waste | Crushed by Compactor (1 part destroyed) 13347 | -6/Waste | Destroyed C-40 Crusher 13370 | -6/Waste | Destroyed C-40 Crusher 13375 | -6/Waste | Lost 7 parts (3n3u1w) 13447 | -6/Waste | Destroyed C-40 Crusher 13454 | -6/Waste | Spotted C-40 Crusher 13486 | -6/Waste | Destroyed C-40 Crusher 13493 | -6/Waste | Spotted C-40 Crusher 13520 | -6/Waste | Destroyed C-40 Crusher 13523 | -6/Waste | Spotted C-40 Crusher 13617 | -6/Waste | Crushed by Compactor (0 parts destroyed, 1 dropped) 13657 | -6/Waste | Build established: Mutant 13716 | -6/Waste | Core integrity fell below 50% 13734 | -6/Waste | Core integrity fell below 20% 13745 | -6/Waste | Destroyed by C-40 Crusher with Compactor Last Messages --------------- 13519_ C-40 Crusher suffers critical hit (Destroy). 13520_ Slug penetrates C-40 Crusher. 13520_ C-40 Crusher destroyed. 13524_ Slug penetrates Wall. 13526_ Slug penetrates C-40 Crusher. 13527_ AWS/Gauss suddenly breaks down. 13529_ Hvy. Treads crushed. 13531_ Dynamic Insulation System crushed. 13531_ 280 Matter crushed. 13532_ Hvy. Treads crushed. 13533_ Acquired Hvy. Treads. 13545_ Dynamic Insulation System crushed. 13617_ Acquired Mic. Antimatter Reactor. 13617_ Mic. Antimatter Reactor crushed. 13685_ Critical hit (Destroy). 13685_ Broken AWS/Gauss destroyed. 13709_ Critical hit (Destroy). 13709_ Hvy. Treads destroyed. 13718_ Critical hit (Destroy). 13718_ Hvy. Treads destroyed. Map ----- +----------------------------------------------------+ | ?????????????????????????????????????????????????? | | ?????????????????????????????????????????????????? | | ?????????????????????????????????????????????????? | | ?????????????????????????????????????????????????? | | ?????????????????????????????????????????????????? | | ?????????????????????????????????????????????????? | | ?????????????????????????????????????????????????? | | ????????????????????##########???????????????????? | | ????????????????????# ! #???????????????????? | | ????????????????????# #???????????????????? | | ????????????????????# #???????????????????? | | ????????????????????# #???????????????????? | | ????????????????????# #???????????????????? | | ????????????????????# #???????????????????? | | ????????????????????# #???????????????????? | | ????????????????????# = / #????######?????????? | | ????????????????????### ###????# #?????????? | | ???????????????##?????# [* #??????# #?????????? | | ???????????????# #????# =%!#??????# #?????????? | | ????????????????# #???# !!=#??????# #????????? | | ?????????????????# #### ######## ######## ? | | ??????????????????# # = | | ???????????????????#; | | ????????????????????# | | ????????????????????# | | ????????????????????##; @ ######## #######???? | | ?????????????????????## CC#??????# #?????????? | | ??????????????????????# %CC#??????# #?????????? | | ??????????????????????# ! #??????# #????????? | | ????????????????????### #??????# ######## | | ????????????????????# #??????# | | ????????????????????# #??????# | | ????????????????????# #??????# | | ????????????????????# #??????# | | ????????????????????##; #??????# ######## | | ????????############?## ##?????# #????????? | | ????????# #?## ;#?????# #?????????? | | ????????# #?#; ;####??# #?????????? | | ????????# #### ###%#### ######## ?? | | ????????# | | ????????# | | ????????# !=! | | ????????# | | ????????# #### ######## ######## | | ????????# #??# #??????# #????????? | | ????????# #??# #??????# #?????????? | | ????????############??# #??????# #?????????? | | ??????????????????????# #??????# #?????????? | | ??????????????????????######?????? ?????????? | | ?????????????????????????????????? ????????? | +----------------------------------------------------+ Best States ------------- Heat Dissipation 56 Energy Generation 16 Energy Capacity 290 Matter Stores 300 Matter Capacity 300 Sight Range 16 Terrain Scan Range 14 Terrain Scan Density 10 Armor Coverage 450 Resistance: KI 30 Resistance: TH 10 Propulsion Shielding 66 Evasion (%) 50 Core Analysis 6 Armor Integrity Analysis 30 Recoil Reduction 4 Offensive Hacking 20 Authchip Count 2 Item Schematics ----------------- Exp. Sensor Array | -8/Materials | Scanalyzed Force Field | -7/Factory | Scanalyzed Robot Schematics ------------------ None Fabricated ------------ Nothing Alien Tech Used ----------------- None Achievements -------------- None Challenges ------------ None Game ------ Seed TransmissionHybridMaul Manual? 0 Play Time 00:59:34 Cumulative 131.0 hours Start 2024.01.23 @ 13:20:15 End 2024.01.23 @ 14:18:01 Sessions 1 Manual Loads 0 Difficulty Rogue Special Mode None Game No. 130 Rogue 130 Adventurer 0 Explorer 0 Win Type - Total 2 Types 2/0/0/0/0/0/0/0/0 Lore% 56 Gallery% 62 Achievement% 53 Wizard Run 0 Options --------- ASCII 0 Keyboard 1 Movement Numpad Keybinds 0 Fullscreen 2 Font 18/SmallcapsGlow Map View 76x50 Tactical HUD 1 Map Filters NONE Filters NONE Steam 1 RUN: b5b248b7-62cf-42a3-8018-b867b7a2cb4b